bitfinex-derivatives/quotes_BNBF0:USTF0_20250523
["timestamp","ask_amount","ask_price","bid_price","bid_amount"]
[1747972516500,1.301,689.2,688.68,1.82672365]
[1747972519301,0.373,689.19,688.68,1.82672365]
[1747972519803,0.373,689.19,688.56,1.82672365]
[1747972522802,0.373,689.19,688.52,1.82672365]
[1747972523007,0.97404493,689.18,688.52,1.82672365]
[1747972523607,0.97404493,689.17,688.52,1.82672365]
[1747972525416,0.97404493,689.16,688.5,0.29048656]
[1747972526715,0.373,689.19,688.5,0.29048656]
[1747972528414,0.373,689.19,688.5,2.11721021]
[1747972530617,0.373,689.19,688.5,0.29048656]
[1747972538323,1.301,689.2,688.5,0.29048656]
[1747972540622,1.301,689.2,688.51,1.82672365]
[1747972541027,0.373,689.19,688.51,1.82672365]
[1747972543424,0.373,689.19,688.5,0.29048656]
[1747972553746,1.004,689.18,688.5,0.29048656]
[1747972559154,0.97274377,689.17,688.5,0.29048656]
[1747972561057,0.97274377,689.16,688.5,0.29048656]
[1747972562457,0.97274377,689.15,688.5,0.29048656]
[1747972563259,0.97274377,689.15,688.23,1.82672365]
[1747972563658,0.373,689.14,688.23,1.82672365]
[1747972564559,1.34574377,689.14,688.2,1.82672365]
[1747972565758,0.97274377,689.13,688.2,1.82672365]
[1747972566152,0.29022521,689.12,688.2,1.82672365]
[1747972567763,0.29022521,689.12,687.6,3.03718819]
[1747972567764,1.0832048,688.9,687.39,1.82672365]
[1747972568061,1.0832048,688.9,687.41,0.29094717]
[1747972569064,0.97274377,688.89,687.41,0.29094717]
[1747972571070,0.97274377,688.88,687.47,1.82672365]
[1747972571366,0.97274377,688.88,687.49,0.29091332]
[1747972572466,0.97274377,688.87,687.49,0.29091332]
[1747972574270,0.97274377,688.86,687.49,0.29091332]
[1747972575567,0.97274377,688.85,687.49,0.29091332]
[1747972577167,0.97274377,688.84,687.49,0.29091332]
[1747972578268,0.97274377,688.83,687.49,0.29091332]
[1747972579870,0.97274377,688.82,687.57,1.82672365]
[1747972580070,0.97274377,688.82,687.59,0.29087101]
[1747972580970,0.29022521,689.12,687.59,0.29087101]
[1747972581265,0.25275911,689.02,687.59,0.29087101]
[1747972582472,0.96476521,689.01,687.59,0.29087101]
[1747972584066,0.96476521,689.0,687.59,0.29087101]
[1747972585872,0.96476521,688.99,687.59,0.29087101]
[1747972587672,0.96476521,688.98,687.59,0.29087101]
[1747972589776,0.96476521,688.97,687.59,2.11759466]
[1747972590575,0.373,688.96,687.59,2.11759466]
[1747972590977,0.96476521,688.95,687.59,2.11759466]
[1747972592679,0.96476521,688.94,687.63,1.82672365]
[1747972592971,0.96476521,688.94,687.64,0.29084986]
[1747972594075,0.96476521,688.93,687.64,0.29084986]
[1747972595877,0.96476521,688.92,687.64,0.29084986]
[1747972597179,0.96476521,688.91,687.64,0.29084986]
[1747972598681,0.96476521,688.95,687.64,0.29084986]
[1747972601583,1.0832048,688.93,687.64,0.29084986]
[1747972602883,0.96476521,688.92,687.64,0.29084986]
[1747972603085,1.86276521,688.92,687.64,0.29084986]
[1747972604780,0.96476521,688.91,687.64,0.29084986]
[1747972613892,2.04797001,688.91,687.64,0.29084986]
[1747972615092,0.96476521,688.9,687.64,0.29084986]
[1747972615590,0.29032211,688.89,687.64,0.29084986]
[1747972616889,0.373,688.88,687.64,0.29084986]
[1747972617095,0.66332632,688.88,687.64,0.29084986]
[1747972617795,1.0832048,688.77,687.64,0.29084986]
[1747972619499,0.96476521,688.76,687.64,0.29084986]
[1747972622199,1.18,688.75,687.64,0.29084986]
[1747972622795,0.96476521,688.74,687.64,0.29084986]
[1747972633110,0.96476521,688.74,687.77,1.82672365]
[1747972635814,0.96476521,688.74,687.73,1.82672365]
[1747972640610,0.96476521,688.74,687.75,1.82672365]
[1747972644316,0.96476521,688.74,687.68,1.82672365]
[1747972649124,0.96476521,688.82,687.68,1.82672365]
[1747972649525,1.079,688.81,687.68,1.82672365]
[1747972650626,1.0832048,688.75,687.79,1.82672365]
[1747972652020,0.96476521,688.74,687.79,1.82672365]
[1747972653524,0.96476521,688.74,687.74,1.82672365]
[1747972655130,0.96476521,688.73,687.74,1.82672365]
[1747972656833,0.96476521,688.72,687.75,1.82672365]
[1747972658334,0.96476521,688.71,687.75,1.82672365]
[1747972660235,0.96476521,688.7,687.75,1.82672365]
[1747972661337,0.96476521,688.74,687.75,1.82672365]
[1747972663539,1.0832048,688.71,687.85,1.82672365]
[1747972665043,0.96476521,688.7,687.85,1.82672365]
[1747972666942,0.96476521,688.7,687.81,1.82672365]
[1747972668144,0.96476521,688.71,687.81,1.82672365]
[1747972670244,0.96476521,688.7,687.82,1.82672365]
[1747972672345,0.96476521,688.71,687.82,1.82672365]
[1747972674747,0.96476521,688.7,687.82,1.82672365]
[1747972675748,0.96476521,688.71,687.82,1.82672365]
[1747972677151,2.04797001,688.7,687.86,1.82672365]
[1747972677948,0.96476521,688.69,687.86,1.82672365]
[1747972679750,2.04797001,688.68,687.87,1.82672365]
[1747972681150,0.96476521,688.67,687.87,1.82672365]
[1747972682550,0.96476521,688.66,687.84,1.82672365]
[1747972683747,0.96476521,688.69,687.84,1.82672365]
[1747972685254,0.96476521,688.68,687.85,1.82672365]
[1747972686854,0.96476521,688.75,687.85,1.82672365]
[1747972688254,0.96,688.74,687.85,1.82672365]
[1747972688955,1.92476521,688.74,687.89,1.82672365]
[1747972689354,0.371,688.73,687.89,1.82672365]
[1747972690254,0.96476521,688.72,687.89,1.82672365]
[1747972692056,0.371,688.73,687.89,1.82672365]
[1747972692057,0.96476521,688.71,687.89,1.82672365]
[1747972694056,0.96476521,688.72,687.89,1.82672365]
[1747972695860,1.0832048,688.71,688.01,1.82672365]
[1747972698560,0.96476521,688.72,687.93,1.82672365]
[1747972701460,0.96476521,688.72,687.91,1.82672365]
[1747972703967,0.96476521,688.72,687.64,0.29084986]
[1747972703968,0.96476521,688.72,687.93,1.82672365]
[1747972705768,0.96476521,688.73,687.93,1.82672365]
[1747972707767,2.04797001,688.73,687.96,1.82672365]
[1747972707967,0.371,688.72,687.96,1.82672365]
[1747972709069,0.96476521,688.71,687.96,1.82672365]
[1747972710672,0.96476521,688.71,687.9,1.82672365]
[1747972713574,0.96476521,688.7,687.85,1.82672365]
[1747972714274,0.96476521,688.69,687.85,1.82672365]
[1747972716475,0.96476521,688.68,687.7,1.82672365]
[1747972717375,0.96476521,688.67,687.7,1.82672365]
[1747972719176,0.96476521,688.66,687.72,1.82672365]
[1747972719875,0.96476521,688.65,687.72,1.82672365]
[1747972721277,0.96476521,688.64,687.71,1.82672365]
[1747972722976,0.96476521,688.63,687.71,1.82672365]
[1747972724381,0.371,688.62,687.71,1.82672365]
[1747972724780,0.371,688.62,687.64,0.29084986]
[1747972724781,0.371,688.62,687.69,1.82672365]
[1747972725778,0.96476521,688.61,687.69,1.82672365]
[1747972727181,0.96476521,688.6,687.69,1.82672365]
[1747972728579,0.96476521,688.59,687.69,1.82672365]
[1747972730483,1.0832048,688.57,687.69,1.82672365]
[1747972731683,0.96476521,688.56,687.69,1.82672365]
[1747972733785,1.0832048,688.56,687.75,1.82672365]
[1747972734584,0.96476521,688.55,687.75,1.82672365]
[1747972736884,1.0832048,688.56,687.73,1.82672365]
[1747972738485,0.96476521,688.55,687.73,1.82672365]
[1747972740683,1.0832048,688.56,687.73,1.82672365]
[1747972740684,1.0832048,688.57,687.73,1.82672365]
[1747972742183,1.78476521,688.56,687.73,1.82672365]
[1747972743989,0.96476521,688.55,687.65,1.82672365]
[1747972749693,0.96476521,688.55,687.64,0.29084986]
[1747972753095,0.96476521,688.55,687.64,2.11757351]
[1747972756396,0.96476521,688.55,687.65,1.82672365]
[1747972757298,0.371,688.54,687.65,1.82672365]
[1747972757492,0.96476521,688.53,687.65,1.82672365]
[1747972759499,0.96476521,688.53,687.64,0.29084986]
[1747972777123,0.96476521,688.55,687.64,0.29084986]
[1747972779123,0.371,688.54,687.64,0.29084986]
[1747972779828,0.96476521,688.53,687.64,2.11757351]
[1747972782526,0.96476521,688.53,687.66,1.82672365]
[1747972785029,2.04797001,688.53,687.7,1.82672365]
[1747972786333,0.96476521,688.52,687.7,1.82672365]
[1747972787733,1.0832048,688.5,687.73,1.82672365]
[1747972789339,0.96476521,688.49,687.73,1.82672365]
[1747972791437,2.04797001,688.48,687.75,1.82672365]
[1747972792637,1.0832048,688.45,687.82,1.82672365]
[1747972795839,1.0832048,688.47,687.81,1.82672365]
[1747972798745,0.96476521,688.5,687.75,1.82672365]
[1747972799740,0.96476521,688.49,687.75,1.82672365]
[1747972801748,2.25276521,688.48,687.7,1.82672365]
[1747972803350,0.96476521,688.47,687.7,1.82672365]
[1747972808051,0.96476521,688.47,687.77,1.82672365]
[1747972811152,0.96476521,688.47,687.73,1.82672365]
[1747972811653,0.371,688.46,687.73,1.82672365]
[1747972812152,0.96476521,688.45,687.73,1.82672365]
[1747972814151,0.96476521,688.45,687.7,1.82672365]
[1747972816358,1.227,688.44,687.7,1.82672365]
[1747972816760,1.227,688.44,687.69,1.82672365]
[1747972820060,1.227,688.44,687.87,1.82672365]
[1747972823558,1.227,688.44,687.98,1.82672365]
[1747972826966,1.227,688.44,687.95,1.82672365]
[1747972830069,1.227,688.44,687.85,1.82672365]
[1747972833679,1.227,688.44,687.94,1.82672365]
[1747972835778,1.227,688.44,687.9,1.82672365]
[1747972838282,1.227,688.44,687.92,1.82672365]
[1747972840983,1.227,688.44,687.93,1.82672365]
[1747972842989,1.227,688.44,687.86,1.82672365]
[1747972845888,1.227,688.44,687.88,1.82672365]
[1747972848788,1.227,688.44,687.85,1.82672365]
[1747972852191,1.227,688.44,687.73,1.82672365]
[1747972852390,1.227,688.44,687.74,0.29080757]
[1747972862901,1.227,688.44,687.94,1.82672365]
[1747972866201,1.0832048,688.92,687.94,1.82672365]
[1747972866901,1.0832048,688.92,687.91,1.82672365]
[1747972867902,0.97805706,688.91,687.91,1.82672365]
[1747972869398,1.0832048,688.82,687.78,1.82672365]
[1747972870501,0.97805706,688.81,687.78,1.82672365]
[1747972871905,0.97805706,688.81,687.79,1.82672365]
[1747972874909,1.0832048,688.79,687.79,1.82672365]
[1747972876306,0.97805706,688.78,687.79,1.82672365]
[1747972877704,0.97805706,688.77,687.74,0.29080757]
[1747972878909,1.0832048,688.82,687.74,0.29080757]
[1747972878910,0.97805706,688.76,687.74,0.29080757]
[1747972880711,0.97805706,688.75,687.74,0.29080757]
[1747972882110,0.97805706,688.81,687.74,0.29080757]
[1747972884012,0.97805706,688.8,687.74,0.29080757]
[1747972885016,0.97805706,688.79,687.74,0.29080757]
[1747972886522,0.97805706,688.78,687.74,0.29080757]
[1747972887818,0.97805706,688.77,687.74,0.29080757]
[1747972890321,0.97805706,688.76,687.74,0.29080757]
[1747972891524,0.97805706,688.75,687.74,0.29080757]
[1747972892724,0.97805706,688.74,687.74,0.29080757]
[1747972894528,0.97805706,688.73,687.74,0.29080757]
[1747972895829,0.97805706,688.72,687.74,0.29080757]
[1747972896931,0.97805706,688.71,687.74,0.29080757]
[1747972897330,1.335,688.7,687.74,0.29080757]
[1747972898231,0.97805706,688.69,687.78,1.82672365]
[1747972899529,0.97805706,688.68,687.78,1.82672365]
[1747972901532,0.97805706,688.67,687.83,1.82672365]
[1747972902631,0.97805706,688.66,687.83,1.82672365]
[1747972904133,0.97805706,688.65,687.93,1.82672365]
[1747972905433,1.335,688.7,687.93,1.82672365]
[1747972907332,1.335,688.7,687.8,1.82672365]
[1747972907535,1.335,688.7,687.81,0.29077797]
[1747972911337,0.372,689.0,687.81,0.29077797]
[1747972911837,0.97647794,688.99,687.81,0.29077797]
[1747972914139,0.97647794,688.98,687.96,1.82672365]
[1747972914740,1.276,688.97,687.96,1.82672365]
[1747972915942,0.97647794,688.96,687.96,1.82672365]
[1747972917839,0.97647794,688.95,688.0,1.82672365]
[1747972919142,0.97647794,688.94,688.0,1.82672365]
[1747972920444,0.97647794,688.93,688.03,1.82672365]
[1747972921748,1.276,688.97,688.03,1.82672365]
[1747972923149,1.276,688.97,688.09,1.82672365]
[1747972925742,1.276,688.97,688.15,1.82672365]
[1747972926750,0.25268936,689.25,688.15,1.82672365]
[1747972927046,0.9736126,689.24,688.15,1.82672365]
[1747972927251,1.3446126,689.24,688.15,1.82672365]
[1747972928953,0.9736126,689.23,688.15,1.82672365]
[1747972929854,0.9736126,689.22,688.15,1.82672365]
[1747972930855,1.137,689.21,688.15,1.82672365]
[1747972931651,1.137,689.21,687.81,0.29077797]
[1747972931652,0.9736126,689.2,688.11,1.82672365]
[1747972933262,0.9736126,689.19,688.11,1.82672365]
[1747972934762,0.9736126,689.18,688.07,1.82672365]
[1747972935963,0.9736126,689.17,688.07,1.82672365]
[1747972937465,0.9736126,689.16,688.05,1.82672365]
[1747972937663,0.9736126,689.16,688.06,0.29067232]
[1747972938568,0.9736126,689.15,688.06,0.29067232]
[1747972940471,0.9736126,689.14,688.06,0.29067232]
[1747972941768,0.372,689.13,688.06,0.29067232]
[1747972949376,0.372,689.13,688.07,1.82672365]
[1747972949573,0.372,689.13,688.08,0.29066387]
[1747972950476,0.97187563,689.12,688.08,0.29066387]
[1747972951772,0.372,689.13,688.11,1.82672365]
[1747972951977,0.372,689.13,688.12,0.29064698]
[1747972952577,1.222,689.12,688.12,0.29064698]
[1747972955280,1.222,689.12,688.2,1.82672365]
[1747972955480,1.222,689.12,688.2,2.11733684]
[1747972955883,1.222,689.12,688.21,0.29060897]
[1747972958382,1.222,689.12,688.28,1.82672365]
[1747972958578,1.222,689.12,688.29,0.29057519]
[1747972959688,0.371,689.11,688.29,0.29057519]
[1747972961190,0.371,689.11,688.52,1.82672365]
[1747972963792,0.371,689.11,688.48,1.82672365]
[1747972967794,0.371,689.11,688.37,1.82672365]
[1747972968091,0.371,689.11,688.38,0.2905372]
[1747972977602,0.371,689.11,688.41,1.82672365]
[1747972977900,0.371,689.11,688.42,0.29052032]
[1747972978900,0.835,689.1,688.42,0.29052032]
[1747972986607,0.835,689.1,688.46,1.82672365]
[1747972986803,0.835,689.1,688.47,0.29049922]
[1747972989709,0.835,689.1,688.69,1.82672365]
[1747972989905,0.835,689.1,688.7,0.2904022]
[1747972997514,0.371,689.16,688.7,0.2904022]
[1747972998114,0.371,689.16,688.74,1.82672365]
[1747972998310,0.371,689.16,688.75,0.29038112]
[1747973001515,0.806,689.64,688.75,0.29038112]
[1747973002016,0.806,689.64,688.75,2.11710477]
[1747973004114,0.371,689.63,688.75,2.11710477]
[1747973004515,0.371,689.63,688.8,1.82672365]
[1747973004713,0.371,689.63,688.81,0.29035583]
[1747973006817,0.371,689.63,688.81,2.11707948]
[1747973009812,0.371,689.63,688.81,0.29035583]
[1747973026028,0.806,689.64,688.81,0.29035583]
[1747973026527,0.97276342,689.62,688.81,0.29035583]
[1747973028129,0.806,689.64,688.81,0.29035583]
[1747973028631,0.371,689.63,688.81,0.29035583]
[1747973033835,0.371,689.63,688.83,1.82672365]
[1747973036334,0.371,689.63,688.81,0.29035583]
[1747973042544,0.371,689.63,688.96,1.82672365]
[1747973045946,0.371,689.63,689.05,1.82672365]
[1747973048947,0.371,689.63,688.99,1.82672365]
[1747973050248,0.97812435,689.62,688.99,1.82672365]
[1747973051849,0.97812435,689.61,688.95,1.82672365]
[1747973053544,0.97812435,689.63,688.95,1.82672365]
[1747973055150,0.97812435,689.63,688.81,0.29035583]
[1747973055151,0.97812435,689.63,688.82,1.82672365]
[1747973055749,0.371,689.62,688.82,1.82672365]
[1747973056050,0.97812435,689.61,688.82,1.82672365]
[1747973058051,0.97812435,689.61,688.81,0.29035583]
[1747973059248,0.814,689.6,688.81,0.29035583]
[1747973059551,0.97812435,689.59,688.81,0.29035583]
[1747973061552,0.97812435,689.58,688.81,0.29035583]
[1747973062848,0.97812435,689.57,688.81,0.29035583]
[1747973064756,0.97812435,689.56,688.81,0.29035583]
[1747973065754,0.97812435,689.55,688.81,0.29035583]
[1747973067458,0.97812435,689.54,688.81,0.29035583]
[1747973068355,0.97812435,689.53,688.81,0.29035583]
[1747973070455,0.97812435,689.52,688.81,0.29035583]
[1747973071559,0.97812435,689.51,688.81,0.29035583]
[1747973072962,0.97812435,689.51,688.64,1.82672365]
[1747973073157,0.97812435,689.5,688.55,1.82672365]
[1747973074465,0.97812435,689.49,688.55,1.82672365]
[1747973076160,0.97812435,689.48,688.51,1.82672365]
[1747973077663,0.97812435,689.47,688.51,1.82672365]
[1747973078465,1.069,689.46,688.51,1.82672365]
[1747973078966,0.97812435,689.45,688.38,1.82672365]
[1747973079167,0.97812435,689.45,688.38,2.11726085]
[1747973080869,0.97812435,689.44,688.38,2.11726085]
[1747973083072,0.97812435,689.43,688.38,0.2905372]
[1747973084572,0.97812435,689.42,688.38,0.2905372]
[1747973086174,0.97812435,689.41,688.42,1.82672365]
[1747973087372,0.97812435,689.4,688.42,1.82672365]
[1747973088671,0.97812435,689.39,688.43,0.2905161]
[1747973089475,0.97812435,689.38,688.43,0.2905161]
[1747973091677,1.069,689.46,688.43,0.2905161]
[1747973092979,0.97383998,689.45,688.43,0.2905161]
[1747973094280,1.069,689.46,688.43,0.2905161]
[1747973095384,1.069,689.46,688.44,1.82672365]
[1747973095582,1.069,689.46,688.45,0.29050766]
[1747973100087,1.069,689.46,688.49,1.82672365]
[1747973100290,1.069,689.46,688.5,0.29048656]
[1747973102595,1.069,689.46,688.52,1.82672365]
[1747973103795,1.069,689.46,688.52,2.11720177]
[1747973104999,0.9753224,689.45,688.52,2.11720177]
[1747973106302,0.9753224,689.44,688.52,2.11720177]
[1747973107503,0.9753224,689.45,688.57,1.82672365]
[1747973109404,0.9753224,689.44,688.57,1.82672365]
[1747973110706,0.9753224,689.43,688.52,0.29047812]
[1747973111907,0.9753224,689.42,688.52,0.29047812]
[1747973114211,1.0800034,689.41,688.52,0.29047812]
[1747973118618,1.0800034,689.43,688.52,0.29047812]
[1747973119118,1.204,689.42,688.52,0.29047812]
[1747973119919,0.9753224,689.41,688.52,0.29047812]
[1747973123926,0.9753224,689.41,688.52,2.11720177]
[1747973127026,0.9753224,689.41,688.58,1.82672365]
[1747973129630,0.9753224,689.41,688.56,1.82672365]
[1747973131730,0.9753224,689.41,688.57,1.02456403]
[1747973132027,0.9753224,689.41,688.58,1.02456403]
[1747973132532,0.9753224,689.41,688.59,1.02456403]
[1747973132733,0.9753224,689.41,688.7,1.82672365]
[1747973133033,0.9753224,689.41,688.71,1.02456403]
[1747973133634,0.9753224,689.41,688.72,1.02456403]
[1747973133934,0.9753224,689.41,688.73,1.02456403]
[1747973134233,0.9753224,689.41,688.74,1.02456403]
[1747973134833,0.9753224,689.41,688.75,1.02456403]
[1747973135033,0.9753224,689.41,688.76,1.02456403]
[1747973135432,0.9753224,689.54,688.76,1.02456403]
[1747973135633,0.9753224,689.54,688.77,1.02456403]
[1747973136330,0.9753224,689.54,688.78,1.02456403]
[1747973136633,0.9753224,689.54,688.79,1.02456403]
[1747973136934,0.9753224,689.54,688.8,1.02456403]
[1747973137234,0.9753224,689.54,688.81,1.02456403]
[1747973137730,0.93,689.53,688.81,1.02456403]
[1747973138033,0.93,689.53,688.82,1.02456403]
[1747973138533,0.9753224,689.52,688.82,1.02456403]
[1747973138833,0.9753224,689.52,688.83,1.02456403]
[1747973139332,0.9753224,689.52,688.84,1.02456403]
[1747973139829,0.9753224,689.52,688.85,1.02456403]
[1747973140334,0.9753224,689.52,688.86,1.02456403]
[1747973141034,0.9753224,689.52,688.87,1.02456403]
[1747973141235,0.9753224,689.52,688.88,1.02456403]
[1747973141834,0.9753224,689.52,688.89,1.02456403]
[1747973142235,0.9753224,689.52,688.9,1.02456403]
[1747973142634,0.9753224,689.52,688.91,1.02456403]
[1747973143136,0.9753224,689.52,688.92,1.02456403]
[1747973143637,0.9753224,689.52,688.93,1.02456403]
[1747973144036,0.9753224,689.52,688.94,1.02456403]
[1747973144437,0.9753224,689.52,688.95,1.02456403]
[1747973145440,0.9753224,689.52,688.96,1.02456403]
[1747973145838,0.9753224,689.52,688.97,1.02456403]
[1747973146539,0.9753224,689.52,688.98,1.02456403]
[1747973147038,0.9753224,689.52,688.99,1.02456403]
[1747973147338,0.9753224,689.52,689.0,1.02456403]
[1747973147835,0.9753224,689.52,689.01,1.02456403]
[1747973148241,0.9753224,689.52,689.02,1.02456403]
[1747973148439,0.9753224,689.52,689.03,1.02456403]
[1747973148940,0.9753224,689.52,689.04,1.02456403]
[1747973149137,0.9753224,689.52,689.05,1.02456403]
[1747973149643,0.9753224,689.52,689.06,1.02456403]
[1747973149839,0.9753224,689.52,689.07,1.02456403]
[1747973150242,0.9753224,689.52,689.08,1.02456403]
[1747973150642,0.9753224,689.52,689.09,1.02456403]
[1747973151044,0.9753224,689.52,689.1,1.02456403]
[1747973151343,0.9753224,689.52,689.11,1.02456403]
[1747973151738,0.9753224,689.52,689.12,1.02456403]
[1747973152043,0.9753224,689.52,689.13,1.02456403]
[1747973152644,0.9753224,689.52,689.14,1.02456403]
[1747973153345,1.0800034,689.64,689.15,1.02456403]
[1747973153646,1.0800034,689.64,689.16,1.02456403]
[1747973154146,1.0800034,689.64,689.17,1.02456403]
[1747973154445,1.0800034,689.64,689.18,1.02456403]
[1747973154946,1.0800034,689.64,689.19,1.02456403]
[1747973155142,1.0800034,689.64,689.2,1.02456403]
[1747973155347,1.0800034,689.6,689.2,1.02456403]
[1747973155547,1.0800034,689.6,689.21,1.02456403]
[1747973156143,1.0800034,689.6,689.22,1.02456403]
[1747973156748,1.0800034,689.6,689.23,1.02456403]
[1747973157149,1.0800034,689.6,689.24,1.02456403]
[1747973157648,1.0800034,689.6,689.25,1.02456403]
[1747973158148,1.0800034,689.6,689.26,1.02456403]
[1747973158649,1.0800034,689.6,689.27,1.02456403]
[1747973159049,1.0800034,689.6,689.28,1.02456403]
[1747973159549,1.0800034,689.6,689.29,1.02456403]
[1747973159950,1.0800034,689.6,689.3,1.02456403]
[1747973160545,1.0800034,689.6,689.31,1.02456403]
[1747973161145,1.0800034,689.6,688.7,1.82672365]
[1747973161146,1.0800034,689.6,689.32,1.02456403]
[1747973161949,1.0800034,689.6,689.33,1.02456403]
[1747973162252,1.0800034,689.6,689.34,1.02456403]
[1747973162951,1.0800034,689.6,689.35,1.02456403]
[1747973163150,1.0800034,689.59,689.35,1.02456403]
[1747973163451,1.0800034,689.59,689.36,1.02456403]
[1747973163753,1.0800034,689.59,689.37,1.02456403]
[1747973164053,1.0800034,689.59,688.78,1.82672365]
[1747973164454,0.373,689.58,688.78,1.82672365]
[1747973164753,0.373,689.58,688.75,1.82672365]
[1747973165248,0.9753224,689.57,688.75,1.82672365]
[1747973166252,0.9753224,689.57,688.76,1.82672365]
[1747973168054,0.9753224,689.57,688.77,1.82672365]
[1747973170257,0.9753224,689.57,688.76,1.82672365]
[1747973172457,0.9753224,689.57,688.75,1.82672365]
[1747973175354,0.9753224,689.57,688.7,1.82672365]
[1747973178162,0.9753224,689.57,688.52,0.29047812]
[1747973178163,0.9753224,689.57,688.71,1.82672365]
[1747973179566,0.9753224,689.66,688.71,1.82672365]
[1747973180870,0.373,689.65,688.71,1.82672365]
[1747973181667,1.0800034,689.6,688.54,1.82672365]
[1747973181865,1.0800034,689.6,688.55,0.29046547]
[1747973183370,0.9753224,689.59,688.55,0.29046547]
[1747973185271,1.0800034,689.61,688.58,1.82672365]
[1747973188575,1.0800034,689.59,688.64,1.82672365]
[1747973191279,1.0800034,689.52,688.77,1.82672365]
[1747973193880,1.0800034,689.49,688.64,1.82672365]
[1747973196082,1.11,689.48,688.64,1.82672365]
[1747973196985,0.9753224,689.47,688.62,1.82672365]
[1747973198885,0.373,689.46,688.62,1.82672365]
[1747973200489,0.9753224,689.45,688.55,0.29046547]
[1747973201189,0.9753224,689.45,688.56,1.03197513]
[1747973201489,0.9753224,689.45,688.57,0.29045703]
[1747973201682,0.9753224,689.45,688.58,1.03197513]
[1747973201886,0.9753224,689.45,688.59,0.29044859]
[1747973202188,0.9753224,689.45,688.6,1.03197513]
[1747973202389,0.9753224,689.45,688.61,0.29044016]
[1747973203189,0.9753224,689.45,688.74,1.82672365]
[1747973203584,0.9753224,689.45,688.75,1.03197513]
[1747973203789,0.9753224,689.45,688.74,1.82672365]
[1747973203790,0.9753224,689.45,688.76,1.03197513]
[1747973203989,0.9753224,689.45,688.76,1.32235203]
[1747973204191,0.373,689.46,688.77,1.32234782]
[1747973204384,0.373,689.46,688.78,1.3223436]
[1747973204789,0.373,689.46,688.79,1.03197513]
[1747973205186,0.373,689.46,688.79,1.32233939]
[1747973205590,0.373,689.46,688.8,1.03197513]
[1747973206091,0.373,689.46,688.81,1.03197513]
[1747973206591,0.373,689.46,688.85,1.82672365]
[1747973206889,0.373,689.46,688.86,1.03197513]
[1747973207391,0.373,689.46,688.87,1.03197513]
[1747973207792,0.373,689.46,688.88,1.03197513]
[1747973208092,0.373,689.46,688.89,1.03197513]
[1747973208390,0.373,689.46,688.9,1.03197513]
[1747973208992,0.373,689.46,688.91,1.03197513]
[1747973209288,0.373,689.46,688.92,1.03197513]
[1747973209592,0.373,689.46,688.93,1.03197513]
[1747973210095,0.373,689.46,688.94,1.03197513]
[1747973210393,0.373,689.46,688.95,1.03197513]
[1747973211093,0.373,689.46,688.96,1.03197513]
[1747973211594,0.373,689.46,688.97,1.03197513]
[1747973212094,0.373,689.46,688.98,1.03197513]
[1747973212494,0.373,689.46,688.99,1.03197513]
[1747973212895,0.373,689.46,689.0,1.03197513]
[1747973213490,0.373,689.46,689.01,1.03197513]
[1747973213898,0.373,689.46,689.02,1.03197513]
[1747973214298,0.373,689.46,689.03,1.03197513]
[1747973214697,0.373,689.46,689.04,1.03197513]
[1747973215498,0.373,689.46,689.05,1.03197513]
[1747973215898,0.373,689.46,689.06,1.03197513]
[1747973216297,0.373,689.46,689.07,1.03197513]
[1747973216899,0.373,689.46,689.08,1.03197513]
[1747973217498,0.373,689.46,689.09,1.03197513]
[1747973217894,0.373,689.46,689.1,1.03197513]
[1747973218199,0.373,689.46,689.11,1.03197513]
[1747973218599,0.373,689.46,689.12,1.03197513]
[1747973219198,0.373,689.46,689.13,1.03197513]
[1747973219701,0.373,689.46,689.14,1.03197513]
[1747973220099,0.373,689.46,689.15,1.03197513]
[1747973220501,0.373,689.46,689.16,1.03197513]
[1747973221000,0.373,689.46,689.17,1.03197513]
[1747973221501,0.373,689.46,689.18,1.03197513]
[1747973221901,0.373,689.46,689.19,1.03197513]
[1747973222303,0.373,689.46,689.2,1.03197513]
[1747973222701,0.373,689.46,689.21,1.03197513]
[1747973223008,0.373,689.46,689.22,1.03197513]
[1747973223604,0.373,689.46,689.23,1.03197513]
[1747973224203,0.373,689.46,689.24,1.03197513]
[1747973224505,0.373,689.46,689.25,1.03197513]
[1747973224799,1.11,689.48,689.25,1.03197513]
[1747973225103,1.11,689.48,689.26,1.03197513]
[1747973225503,1.11,689.48,689.27,1.03197513]
[1747973225803,1.11,689.48,689.28,1.03197513]
[1747973226403,1.11,689.48,689.29,1.03197513]
[1747973226706,1.11,689.48,688.94,1.82672365]
[1747973227707,1.11,689.48,688.93,1.82672365]
[1747973228108,0.373,689.47,688.93,1.82672365]